Body Name,Body,Service Division,Expense Type,Date Paid,Transaction Ref,Invoice Amount,Supplier Name
South Holland District Council,http://statistics.data.gov.uk/id/local-authority/32UF,AD Housing,Grants and Contributions to Outside Bodies - No Service Received,03/10/2023,30035943,"1,680.00 ",Maplethorpe Builders Ltd
South Holland District Council,http://statistics.data.gov.uk/id/local-authority/32UF,AD Housing HRA,Furniture and Equipment,03/10/2023,30035296,906.18 ,Veolia Es UK Ltd
South Holland District Council,http://statistics.data.gov.uk/id/local-authority/32UF,AD Housing HRA,Gas,03/10/2023,30036147,558.88 ,Espo Gas and Electricity
South Holland District Council,http://statistics.data.gov.uk/id/local-authority/32UF,AD Housing HRA,Void Repairs,03/10/2023,30036052,"8,235.00 ",Boors Ltd
South Holland District Council,http://statistics.data.gov.uk/id/local-authority/32UF,AD Housing HRA,Works to Buildings (Main Contractor),03/10/2023,30035935,"35,607.34 ",Harmony Fire
South Holland District Council,http://statistics.data.gov.uk/id/local-authority/32UF,AD Wellbeing and Community Leadership,Bed and Breakfast Accommodation (Homelessness Service),03/10/2023,30036046,"1,116.00 ",The Lord Grey Hotel t/a The lord Grey Ltd
South Holland District Council,http://statistics.data.gov.uk/id/local-authority/32UF,AD Wellbeing and Community Leadership,Bed and Breakfast Accommodation (Homelessness Service),03/10/2023,30036142,"1,776.66 ",G and A Hotels T A Woodlands Hotel
South Holland District Council,http://statistics.data.gov.uk/id/local-authority/32UF,AD Wellbeing and Community Leadership,Bed and Breakfast Accommodation (Homelessness Service),03/10/2023,30036144,"1,083.34 ",G and A Hotels T A Woodlands Hotel
South Holland District Council,http://statistics.data.gov.uk/id/local-authority/32UF,AD Wellbeing and Community Leadership,Bed and Breakfast Accommodation (Homelessness Service),03/10/2023,30036235,"1,085.00 ",Anglia Motel
South Holland District Council,http://statistics.data.gov.uk/id/local-authority/32UF,AD Wellbeing and Community Leadership,Bed and Breakfast Accommodation (Homelessness Service),03/10/2023,30036237,"1,085.00 ",Anglia Motel
South Holland District Council,http://statistics.data.gov.uk/id/local-authority/32UF,AD Wellbeing and Community Leadership,Bed and Breakfast Accommodation (Homelessness Service),03/10/2023,30036240,"1,085.00 ",Anglia Motel
South Holland District Council,http://statistics.data.gov.uk/id/local-authority/32UF,AD Wellbeing and Community Leadership,Bed and Breakfast Accommodation (Homelessness Service),03/10/2023,30036241,"1,550.00 ",Anglia Motel
South Holland District Council,http://statistics.data.gov.uk/id/local-authority/32UF,AD Wellbeing and Community Leadership,Bed and Breakfast Accommodation (Homelessness Service),03/10/2023,30036242,"1,085.00 ",Anglia Motel
South Holland District Council,http://statistics.data.gov.uk/id/local-authority/32UF,AD Wellbeing and Community Leadership,Grants and Contributions to Outside Bodies - No Service Received,03/10/2023,30035943,"3,360.00 ",Maplethorpe Builders Ltd
South Holland District Council,http://statistics.data.gov.uk/id/local-authority/32UF,Corporate,Computer Software Licence Costs,03/10/2023,30036174,"1,750.00 ",Public Sector Partnership Services Ltd
South Holland District Council,http://statistics.data.gov.uk/id/local-authority/32UF,Corporate,Computer Software Licence Costs,03/10/2023,30036176,"3,418.75 ",Public Sector Partnership Services Ltd
South Holland District Council,http://statistics.data.gov.uk/id/local-authority/32UF,Democratic Services - Democratic,Other Miscellaneous Expenses,03/10/2023,30036003,925.00 ,The Rightside Trust
South Holland District Council,http://statistics.data.gov.uk/id/local-authority/32UF,Environmental Services,Agency Staff,03/10/2023,30036156,"2,784.70 ",Quality Service Recruitment Ltd
South Holland District Council,http://statistics.data.gov.uk/id/local-authority/32UF,Environmental Services,Agency Staff,03/10/2023,30036157,648.84 ,GI Group (previously Encore)
South Holland District Council,http://statistics.data.gov.uk/id/local-authority/32UF,Environmental Services,Agency Staff,03/10/2023,30036289,"1,240.38 ",The Best Connection Group Ltd
South Holland District Council,http://statistics.data.gov.uk/id/local-authority/32UF,Environmental Services,Furniture and Equipment,03/10/2023,30035296,921.78 ,Veolia Es UK Ltd
South Holland District Council,http://statistics.data.gov.uk/id/local-authority/32UF,Finance,Computer Software Licence Costs,03/10/2023,30036174,"1,750.00 ",Public Sector Partnership Services Ltd
South Holland District Council,http://statistics.data.gov.uk/id/local-authority/32UF,Finance,Computer Software Licence Costs,03/10/2023,30036176,"3,418.75 ",Public Sector Partnership Services Ltd
South Holland District Council,http://statistics.data.gov.uk/id/local-authority/32UF,Leisure & Culture Communities,Electricity,03/10/2023,30036226,689.57 ,Total Energies
South Holland District Council,http://statistics.data.gov.uk/id/local-authority/32UF,AD Housing,Grants and Contributions to Outside Bodies - No Service Received,05/10/2023,30036312,"2,848.00 ",Dolphin Mobility East Midlands Ltd
South Holland District Council,http://statistics.data.gov.uk/id/local-authority/32UF,AD Housing,Grants and Contributions to Outside Bodies - No Service Received,05/10/2023,30036339,"7,930.80 ",Warics Ltd
South Holland District Council,http://statistics.data.gov.uk/id/local-authority/32UF,AD Housing,Professional and Contractors Fees,05/10/2023,30036376,495.00 ,Wilks Head and Eve LLP
South Holland District Council,http://statistics.data.gov.uk/id/local-authority/32UF,AD Housing HRA,Agency Staff,05/10/2023,30036039,"1,102.60 ",�Personal Information Redacted�
South Holland District Council,http://statistics.data.gov.uk/id/local-authority/32UF,AD Housing HRA,Agency Staff,05/10/2023,30036065,507.50 ,�Personal Information Redacted�
South Holland District Council,http://statistics.data.gov.uk/id/local-authority/32UF,AD Housing HRA,Materials and Consumables,05/10/2023,30036063,552.40 ,EPH Supplies Wholesale Ltd
South Holland District Council,http://statistics.data.gov.uk/id/local-authority/32UF,AD Housing HRA,Materials and Consumables,05/10/2023,30036111,659.93 ,EPH Supplies Wholesale Ltd
South Holland District Council,http://statistics.data.gov.uk/id/local-authority/32UF,AD Housing HRA,Professional and Contractors Fees,05/10/2023,30036376,"1,845.00 ",Wilks Head and Eve LLP
South Holland District Council,http://statistics.data.gov.uk/id/local-authority/32UF,AD Housing HRA,Void Decoration,05/10/2023,30036120,"2,950.00 ",Boors Ltd
South Holland District Council,http://statistics.data.gov.uk/id/local-authority/32UF,AD Housing HRA,Void Decoration,05/10/2023,30036124,"3,950.00 ",Boors Ltd
South Holland District Council,http://statistics.data.gov.uk/id/local-authority/32UF,AD Housing HRA,Void Repairs,05/10/2023,30036121,"3,250.00 ",Boors Ltd
South Holland District Council,http://statistics.data.gov.uk/id/local-authority/32UF,AD Housing HRA,Void Repairs,05/10/2023,30036122,"7,350.00 ",Boors Ltd
South Holland District Council,http://statistics.data.gov.uk/id/local-authority/32UF,AD Strategic Growth and Development,Grants and Contributions to Outside Bodies - No Service Received,05/10/2023,30036159,"34,875.00 ",BEAM UP Ltd
South Holland District Council,http://statistics.data.gov.uk/id/local-authority/32UF,AD Strategic Growth and Development,Professional and Contractors Fees,05/10/2023,30036083,"6,741.00 ",Mosaic Futures Ltd
South Holland District Council,http://statistics.data.gov.uk/id/local-authority/32UF,AD Strategic Growth and Development,Professional Fees,05/10/2023,30036369,675.00 ,Messrs Longstaff and Co
South Holland District Council,http://statistics.data.gov.uk/id/local-authority/32UF,AD Wellbeing and Community Leadership,Grants and Contributions to Outside Bodies - No Service Received,05/10/2023,30036312,"5,696.00 ",Dolphin Mobility East Midlands Ltd
South Holland District Council,http://statistics.data.gov.uk/id/local-authority/32UF,AD Wellbeing and Community Leadership,Grants and Contributions to Outside Bodies - No Service Received,05/10/2023,30036339,"15,861.60 ",Warics Ltd
South Holland District Council,http://statistics.data.gov.uk/id/local-authority/32UF,Asset & Property,Agency Staff,05/10/2023,30036196,"1,267.62 ",Integrity Plus Ltd
South Holland District Council,http://statistics.data.gov.uk/id/local-authority/32UF,Asset & Property,Agency Staff,05/10/2023,30036197,"1,147.30 ",Integrity Plus Ltd
South Holland District Council,http://statistics.data.gov.uk/id/local-authority/32UF,Asset & Property,Buildings Maintenance - Responsive,05/10/2023,30036019,694.20 ,Warics Ltd
South Holland District Council,http://statistics.data.gov.uk/id/local-authority/32UF,Asset & Property,Electricity,05/10/2023,30036234,"17,282.81 ",Total Energies
South Holland District Council,http://statistics.data.gov.uk/id/local-authority/32UF,Asset & Property,Professional and Contractors Fees,05/10/2023,30036290,586.38 ,Clapham and Collinge Lp Client Account
South Holland District Council,http://statistics.data.gov.uk/id/local-authority/32UF,Finance,Insurance,05/10/2023,30036311,"6,654.27 ",Zurich Municipal
South Holland District Council,http://statistics.data.gov.uk/id/local-authority/32UF,Finance,Other Employee Expenses (Non-Payroll),05/10/2023,30036302,"7,449.92 ",Public Sector Partnership Services Ltd
South Holland District Council,http://statistics.data.gov.uk/id/local-authority/32UF,Head of ICT and Digital,Computer Software Licence Costs,05/10/2023,30036317,"2,421.94 ",Silktide Ltd
South Holland District Council,http://statistics.data.gov.uk/id/local-authority/32UF,Leisure & Culture Communities,Agency Staff,05/10/2023,30036368,"1,000.00 ",Popcorn Media
South Holland District Council,http://statistics.data.gov.uk/id/local-authority/32UF,Leisure & Culture Communities,Electricity,05/10/2023,30036225,"4,118.94 ",Total Energies
South Holland District Council,http://statistics.data.gov.uk/id/local-authority/32UF,Leisure & Culture Communities,Other Income,05/10/2023,30035939,"-2,149.96 ",Live Promotions Events Ltd
South Holland District Council,http://statistics.data.gov.uk/id/local-authority/32UF,Leisure & Culture Communities,Other Miscellaneous Expenses,05/10/2023,30036364,"1,323.00 ",The Stall Hire Company
South Holland District Council,http://statistics.data.gov.uk/id/local-authority/32UF,Leisure & Culture Communities,Payments to Bodies in Respect of Income Collected,05/10/2023,30035939,"7,205.00 ",Live Promotions Events Ltd
South Holland District Council,http://statistics.data.gov.uk/id/local-authority/32UF,Planning,Professional and Contractors Fees,05/10/2023,30036363,"5,000.00 ",DPA Planning Limited
South Holland District Council,http://statistics.data.gov.uk/id/local-authority/32UF,Planning,Professional and Contractors Fees,05/10/2023,30036378,"4,000.00 ",DPA Planning Limited
South Holland District Council,http://statistics.data.gov.uk/id/local-authority/32UF,AD Housing HRA,Agency Staff,10/10/2023,30035731,"1,117.50 ",�Personal Information Redacted�
South Holland District Council,http://statistics.data.gov.uk/id/local-authority/32UF,AD Housing HRA,Agency Staff,10/10/2023,30036081,"1,128.43 ",�Personal Information Redacted�
South Holland District Council,http://statistics.data.gov.uk/id/local-authority/32UF,AD Housing HRA,Agency Staff,10/10/2023,30036340,"1,043.00 ",�Personal Information Redacted�
South Holland District Council,http://statistics.data.gov.uk/id/local-authority/32UF,AD Housing HRA,Agency Staff,10/10/2023,30036357,"1,102.60 ",�Personal Information Redacted�
South Holland District Council,http://statistics.data.gov.uk/id/local-authority/32UF,AD Housing HRA,Agency Staff,10/10/2023,30036380,"1,105.93 ",�Personal Information Redacted�
South Holland District Council,http://statistics.data.gov.uk/id/local-authority/32UF,AD Housing HRA,Electrical Upgrade,10/10/2023,30036222,"13,541.91 ",McIntyre Compliance Services
South Holland District Council,http://statistics.data.gov.uk/id/local-authority/32UF,AD Housing HRA,Electricity,10/10/2023,30036232,"2,916.93 ",Total Energies
South Holland District Council,http://statistics.data.gov.uk/id/local-authority/32UF,AD Housing HRA,Electricity,10/10/2023,30036299,"6,201.04 ",Total Energies
South Holland District Council,http://statistics.data.gov.uk/id/local-authority/32UF,AD Housing HRA,Fuel and Oil,10/10/2023,30036556,904.80 ,C H Jones Ltd
South Holland District Council,http://statistics.data.gov.uk/id/local-authority/32UF,AD Housing HRA,Furniture and Equipment,10/10/2023,30036485,575.00 ,�Personal Information Redacted�
South Holland District Council,http://statistics.data.gov.uk/id/local-authority/32UF,AD Housing HRA,Professional and Contractors Fees,10/10/2023,30036213,"1,140.00 ",Eve Alexander Ltd
South Holland District Council,http://statistics.data.gov.uk/id/local-authority/32UF,AD Housing HRA,Professional and Contractors Fees,10/10/2023,30036525,"6,184.00 ",Citizens Advice South Lincolnshire
South Holland District Council,http://statistics.data.gov.uk/id/local-authority/32UF,AD Housing HRA,Sewerage Treatment Works,10/10/2023,30036219,"27,354.08 ",C G Godfrey Ltd
South Holland District Council,http://statistics.data.gov.uk/id/local-authority/32UF,AD Housing HRA,Void Decoration,10/10/2023,30036273,640.86 ,Tonwood Home Hardware Holbeach
South Holland District Council,http://statistics.data.gov.uk/id/local-authority/32UF,AD Housing HRA,Void Repairs,10/10/2023,30036123,"4,250.00 ",Boors Ltd
South Holland District Council,http://statistics.data.gov.uk/id/local-authority/32UF,AD Housing HRA,Works to Buildings (Main Contractor),10/10/2023,30036355,"5,795.33 ",Westone Housing Ltd
South Holland District Council,http://statistics.data.gov.uk/id/local-authority/32UF,AD Housing HRA,Works to Buildings (Main Contractor),10/10/2023,30036356,"6,823.12 ",Westone Housing Ltd
South Holland District Council,http://statistics.data.gov.uk/id/local-authority/32UF,AD Housing HRA,Works to Buildings (Main Contractor),10/10/2023,30036495,"5,616.70 ",Harmony Fire
South Holland District Council,http://statistics.data.gov.uk/id/local-authority/32UF,AD Strategic Growth and Development,Grants and Contributions to Outside Bodies - No Service Received,10/10/2023,30036314,"1,800.00 ",Social Change UK
South Holland District Council,http://statistics.data.gov.uk/id/local-authority/32UF,AD Strategic Growth and Development,Grants and Contributions to Outside Bodies - No Service Received,10/10/2023,30036328,"2,500.00 ",National Events Ltd
South Holland District Council,http://statistics.data.gov.uk/id/local-authority/32UF,AD Wellbeing and Community Leadership,Grants and Contributions to Outside Bodies - No Service Received,10/10/2023,30036461,"1,900.00 ",Lets Get You Moving
South Holland District Council,http://statistics.data.gov.uk/id/local-authority/32UF,AD Wellbeing and Community Leadership HRA,Works to Buildings (Main Contractor),10/10/2023,30036355,"5,795.33 ",Westone Housing Ltd
South Holland District Council,http://statistics.data.gov.uk/id/local-authority/32UF,AD Wellbeing and Community Leadership HRA,Works to Buildings (Main Contractor),10/10/2023,30036356,"6,823.12 ",Westone Housing Ltd
South Holland District Council,http://statistics.data.gov.uk/id/local-authority/32UF,Asset & Property,Buildings Maintenance - Programmed,10/10/2023,30036207,"3,458.87 ",GBSG Ltd
South Holland District Council,http://statistics.data.gov.uk/id/local-authority/32UF,Asset & Property,Fuel and Oil,10/10/2023,30036556,134.49 ,C H Jones Ltd
South Holland District Council,http://statistics.data.gov.uk/id/local-authority/32UF,Democratic Services - Legal,Legal Fees,10/10/2023,30034948,"4,148.68 ",Lincolnshire County Council
South Holland District Council,http://statistics.data.gov.uk/id/local-authority/32UF,Democratic Services - Legal,Legal Fees,10/10/2023,30035995,"6,353.44 ",Lincolnshire County Council
South Holland District Council,http://statistics.data.gov.uk/id/local-authority/32UF,Democratic Services - Legal,Professional and Contractors Fees,10/10/2023,30035995,108.00 ,Lincolnshire County Council
South Holland District Council,http://statistics.data.gov.uk/id/local-authority/32UF,Economic Development,Grants and Contributions to Outside Bodies - No Service Received,10/10/2023,30036348,650.00 ,Lincs Chamber of Commerce and  Industry
South Holland District Council,http://statistics.data.gov.uk/id/local-authority/32UF,Economic Development,Professional and Contractors Fees,10/10/2023,30036345,"14,566.00 ",Boston Borough Council
South Holland District Council,http://statistics.data.gov.uk/id/local-authority/32UF,Environmental Services,Agency Staff,10/10/2023,30036459,"6,880.34 ",Integrity Plus Ltd
South Holland District Council,http://statistics.data.gov.uk/id/local-authority/32UF,Environmental Services,Agency Staff,10/10/2023,30036501,"1,377.42 ",The Best Connection Group Ltd
South Holland District Council,http://statistics.data.gov.uk/id/local-authority/32UF,Environmental Services,Agency Staff,10/10/2023,30036565,"6,466.50 ",Integrity Plus Ltd
South Holland District Council,http://statistics.data.gov.uk/id/local-authority/32UF,Environmental Services,Agency Staff,10/10/2023,30036566,"1,849.47 ",Quality Service Recruitment Ltd
South Holland District Council,http://statistics.data.gov.uk/id/local-authority/32UF,Environmental Services,Fuel and Oil,10/10/2023,30036556,"8,881.46 ",C H Jones Ltd
South Holland District Council,http://statistics.data.gov.uk/id/local-authority/32UF,Environmental Services,Stationery,10/10/2023,30036335,948.00 ,Classic Printers Crowland Ltd
South Holland District Council,http://statistics.data.gov.uk/id/local-authority/32UF,Finance,Other Miscellaneous Expenses,10/10/2023,30036305,839.32 ,Public Sector Partnership Services Ltd
South Holland District Council,http://statistics.data.gov.uk/id/local-authority/32UF,Finance,Public Sector Partnership Services,10/10/2023,30036320,"282,653.16 ",Public Sector Partnership Services Ltd
South Holland District Council,http://statistics.data.gov.uk/id/local-authority/32UF,Leisure & Culture Communities,License Fees,10/10/2023,30036503,"1,401.27 ",PPL PRS Ltd
South Holland District Council,http://statistics.data.gov.uk/id/local-authority/32UF,Leisure & Culture Communities,License Fees,10/10/2023,30036504,"1,348.16 ",PPL PRS Ltd
South Holland District Council,http://statistics.data.gov.uk/id/local-authority/32UF,Leisure & Culture Communities,Professional and Contractors Fees,10/10/2023,30036201,960.00 ,Agenda Cleaning Services
South Holland District Council,http://statistics.data.gov.uk/id/local-authority/32UF,Planning,Agency - Vacant Post Cover,10/10/2023,30036246,"14,350.00 ",Mark Simmonds Planning Services Limited
South Holland District Council,http://statistics.data.gov.uk/id/local-authority/32UF,AD Housing,Professional and Contractors Fees,12/10/2023,30036557,"2,553.00 ",RG & P Living Ltd
South Holland District Council,http://statistics.data.gov.uk/id/local-authority/32UF,AD Housing HRA,Works to Buildings (Main Contractor),12/10/2023,30036491,"80,032.12 ",D Brown Building Contractors Ltd
South Holland District Council,http://statistics.data.gov.uk/id/local-authority/32UF,AD Housing HRA,Works to Buildings (Main Contractor),12/10/2023,30036492,"26,604.29 ",D Brown Building Contractors Ltd
South Holland District Council,http://statistics.data.gov.uk/id/local-authority/32UF,AD Housing HRA,Works to Buildings (Main Contractor),12/10/2023,30036629,"25,177.24 ",Aaron Services Ltd
South Holland District Council,http://statistics.data.gov.uk/id/local-authority/32UF,AD Strategic Growth and Development,Purchase of Buildings,12/10/2023,30035929,"142,645.50 ",Capsticks Solicitors LLP
South Holland District Council,http://statistics.data.gov.uk/id/local-authority/32UF,AD Strategic Growth and Development,Works to Buildings (Main Contractor),12/10/2023,30036385,"1,380.36 ",Ashley King Developments Ltd
South Holland District Council,http://statistics.data.gov.uk/id/local-authority/32UF,AD Wellbeing and Community Leadership,Bed and Breakfast Accommodation (Homelessness Service),12/10/2023,30036577,"1,083.34 ",G and A Hotels T A Woodlands Hotel
South Holland District Council,http://statistics.data.gov.uk/id/local-authority/32UF,AD Wellbeing and Community Leadership,Bed and Breakfast Accommodation (Homelessness Service),12/10/2023,30036581,"1,083.34 ",G and A Hotels T A Woodlands Hotel
South Holland District Council,http://statistics.data.gov.uk/id/local-authority/32UF,AD Wellbeing and Community Leadership,Bed and Breakfast Accommodation (Homelessness Service),12/10/2023,30036589,956.66 ,G and A Hotels T A Woodlands Hotel
South Holland District Council,http://statistics.data.gov.uk/id/local-authority/32UF,Asset & Property,Professional and Contractors Fees,12/10/2023,30036318,"2,633.00 ",CLS Energy (Consultancy) Ltd
South Holland District Council,http://statistics.data.gov.uk/id/local-authority/32UF,Asset & Property,Works to Buildings (Main Contractor),12/10/2023,30036608,"58,702.80 ",Glen Farrow UK Ltd
South Holland District Council,http://statistics.data.gov.uk/id/local-authority/32UF,Asset & Property,Works to Buildings (Main Contractor),12/10/2023,30036646,"58,702.80 ",Glen Farrow UK Ltd
South Holland District Council,http://statistics.data.gov.uk/id/local-authority/32UF,Capital - Strategic Finance & Compliance,Works to Buildings (Main Contractor),12/10/2023,30036608,"58,702.80 ",Glen Farrow UK Ltd
South Holland District Council,http://statistics.data.gov.uk/id/local-authority/32UF,Capital - Strategic Finance & Compliance,Works to Buildings (Main Contractor),12/10/2023,30036646,"58,702.80 ",Glen Farrow UK Ltd
South Holland District Council,http://statistics.data.gov.uk/id/local-authority/32UF,Economic Development,Professional and Contractors Fees,12/10/2023,30036520,"8,703.60 ",TRC Lincs Ltd
South Holland District Council,http://statistics.data.gov.uk/id/local-authority/32UF,Economic Development,Professional and Contractors Fees,12/10/2023,30036632,"14,330.25 ",Kudos Project Management
South Holland District Council,http://statistics.data.gov.uk/id/local-authority/32UF,Economic Development,Professional and Contractors Fees,12/10/2023,30036633,890.00 ,Client Marketing Ltd
South Holland District Council,http://statistics.data.gov.uk/id/local-authority/32UF,Environmental Services,Agency Staff,12/10/2023,30036598,618.64 ,GI Group (previously Encore)
South Holland District Council,http://statistics.data.gov.uk/id/local-authority/32UF,Environmental Services,Agency Staff,12/10/2023,30036641,833.61 ,The Best Connection Group Ltd
South Holland District Council,http://statistics.data.gov.uk/id/local-authority/32UF,Environmental Services,Agency Staff,12/10/2023,30036643,833.61 ,The Best Connection Group Ltd
South Holland District Council,http://statistics.data.gov.uk/id/local-authority/32UF,Environmental Services,Agency Staff,12/10/2023,30036644,"2,680.32 ",The Best Connection Group Ltd
South Holland District Council,http://statistics.data.gov.uk/id/local-authority/32UF,Environmental Services,Stationery,12/10/2023,30036517,540.00 ,Welland Print Limited
South Holland District Council,http://statistics.data.gov.uk/id/local-authority/32UF,Head of HR & Organisational Development,Employee Professional Subscriptions (Non-Payroll),12/10/2023,30036208,689.04 ,Tuskerdirect Ltd
South Holland District Council,http://statistics.data.gov.uk/id/local-authority/32UF,Housing,Professional and Contractors Fees,12/10/2023,30036557,"2,553.00 ",RG & P Living Ltd
South Holland District Council,http://statistics.data.gov.uk/id/local-authority/32UF,Leisure & Culture Communities,Professional and Contractors Fees,12/10/2023,30036318,"1,317.00 ",CLS Energy (Consultancy) Ltd
South Holland District Council,http://statistics.data.gov.uk/id/local-authority/32UF,AD Housing HRA,Agency Staff,17/10/2023,30036195,"1,398.68 ",Integrity Plus Ltd
South Holland District Council,http://statistics.data.gov.uk/id/local-authority/32UF,AD Housing HRA,Agency Staff,17/10/2023,30036397,"1,295.00 ",�Personal Information Redacted�
South Holland District Council,http://statistics.data.gov.uk/id/local-authority/32UF,AD Housing HRA,Agency Staff,17/10/2023,30036400,"1,398.68 ",Integrity Plus Ltd
South Holland District Council,http://statistics.data.gov.uk/id/local-authority/32UF,AD Housing HRA,Agency Staff,17/10/2023,30036571,"1,072.80 ",�Personal Information Redacted�
South Holland District Council,http://statistics.data.gov.uk/id/local-authority/32UF,AD Housing HRA,Agency Staff,17/10/2023,30036590,894.00 ,�Personal Information Redacted�
South Holland District Council,http://statistics.data.gov.uk/id/local-authority/32UF,AD Housing HRA,Agency Staff,17/10/2023,30036637,"1,105.93 ",�Personal Information Redacted�
South Holland District Council,http://statistics.data.gov.uk/id/local-authority/32UF,AD Housing HRA,Buildings Maintenance - Responsive,17/10/2023,30036218,"1,795.85 ",C G Godfrey Ltd
South Holland District Council,http://statistics.data.gov.uk/id/local-authority/32UF,AD Housing HRA,Buildings Maintenance - Responsive,17/10/2023,30036480,"1,750.00 ",Boors Ltd
South Holland District Council,http://statistics.data.gov.uk/id/local-authority/32UF,AD Housing HRA,Buildings Maintenance - Responsive,17/10/2023,30036486,"3,898.80 ",C G Godfrey Ltd
South Holland District Council,http://statistics.data.gov.uk/id/local-authority/32UF,AD Housing HRA,Buildings Maintenance - Responsive,17/10/2023,30036487,"1,943.82 ",C G Godfrey Ltd
South Holland District Council,http://statistics.data.gov.uk/id/local-authority/32UF,AD Housing HRA,Buildings Maintenance - Responsive,17/10/2023,30036489,"1,894.75 ",C G Godfrey Ltd
South Holland District Council,http://statistics.data.gov.uk/id/local-authority/32UF,AD Housing HRA,Buildings Maintenance - Responsive,17/10/2023,30036490,420.00 ,C G Godfrey Ltd
South Holland District Council,http://statistics.data.gov.uk/id/local-authority/32UF,AD Housing HRA,Buildings Maintenance - Responsive,17/10/2023,30036511,"1,889.23 ",C G Godfrey Ltd
South Holland District Council,http://statistics.data.gov.uk/id/local-authority/32UF,AD Housing HRA,Community Service Charges Payable,17/10/2023,30037238,800.00 ,Capsticks Solicitors LLP
South Holland District Council,http://statistics.data.gov.uk/id/local-authority/32UF,AD Housing HRA,Computer Software Licence Costs,17/10/2023,30037232,864.00 ,Teletrac Navman (UK) Ltd
South Holland District Council,http://statistics.data.gov.uk/id/local-authority/32UF,AD Housing HRA,Fuel and Oil,17/10/2023,30036661,"1,162.90 ",C H Jones Ltd
South Holland District Council,http://statistics.data.gov.uk/id/local-authority/32UF,AD Housing HRA,Furniture and Equipment,17/10/2023,30036600,681.00 ,�Personal Information Redacted�
South Holland District Council,http://statistics.data.gov.uk/id/local-authority/32UF,AD Housing HRA,Materials and Consumables,17/10/2023,30036471,"1,192.25 ",EPH Supplies Wholesale Ltd
South Holland District Council,http://statistics.data.gov.uk/id/local-authority/32UF,AD Housing HRA,Professional and Contractors Fees,17/10/2023,30036721,"3,400.00 ",Complete Certification Ltd
South Holland District Council,http://statistics.data.gov.uk/id/local-authority/32UF,AD Housing HRA,Subscriptions to Organisations and Other Bodies,17/10/2023,30036718,"1,364.25 ",Northern Housing Consortium Ltd
South Holland District Council,http://statistics.data.gov.uk/id/local-authority/32UF,AD Housing HRA,Void Decoration,17/10/2023,30036611,"1,166.67 ",Parkway
South Holland District Council,http://statistics.data.gov.uk/id/local-authority/32UF,AD Housing HRA,Void Repairs,17/10/2023,30036388,"1,950.00 ",Boors Ltd
South Holland District Council,http://statistics.data.gov.uk/id/local-authority/32UF,AD Housing HRA,Works to Buildings (Main Contractor),17/10/2023,30036528,"28,229.49 ",D Brown Building Contractors Ltd
South Holland District Council,http://statistics.data.gov.uk/id/local-authority/32UF,AD Strategic Growth and Development,Purchase of Buildings,17/10/2023,30037238,"560,394.30 ",Capsticks Solicitors LLP
South Holland District Council,http://statistics.data.gov.uk/id/local-authority/32UF,AD Wellbeing and Community Leadership,Bed and Breakfast Accommodation (Homelessness Service),17/10/2023,30036737,"1,085.00 ",Anglia Motel
South Holland District Council,http://statistics.data.gov.uk/id/local-authority/32UF,AD Wellbeing and Community Leadership,Bed and Breakfast Accommodation (Homelessness Service),17/10/2023,30036738,"1,085.00 ",Anglia Motel
South Holland District Council,http://statistics.data.gov.uk/id/local-authority/32UF,AD Wellbeing and Community Leadership,Bed and Breakfast Accommodation (Homelessness Service),17/10/2023,30036739,"1,085.00 ",Anglia Motel
South Holland District Council,http://statistics.data.gov.uk/id/local-authority/32UF,AD Wellbeing and Community Leadership,Bed and Breakfast Accommodation (Homelessness Service),17/10/2023,30036748,"1,100.00 ",Anglia Motel
South Holland District Council,http://statistics.data.gov.uk/id/local-authority/32UF,AD Wellbeing and Community Leadership,Grants and Contributions to Outside Bodies - No Service Received,17/10/2023,30036702,"2,902.00 ",Geoffrey Collings and Co
South Holland District Council,http://statistics.data.gov.uk/id/local-authority/32UF,AD Wellbeing and Community Leadership,Grants and Contributions to Outside Bodies - No Service Received,17/10/2023,30037233,"2,843.06 ",Lets Get You Moving
South Holland District Council,http://statistics.data.gov.uk/id/local-authority/32UF,Asset & Property,Agency Staff,17/10/2023,30036401,633.81 ,Integrity Plus Ltd
South Holland District Council,http://statistics.data.gov.uk/id/local-authority/32UF,Asset & Property,Agency Staff,17/10/2023,30036403,"1,221.06 ",Integrity Plus Ltd
South Holland District Council,http://statistics.data.gov.uk/id/local-authority/32UF,Asset & Property,Buildings Maintenance - Responsive,17/10/2023,30036654,975.00 ,Sutton Bridge Community Larder
South Holland District Council,http://statistics.data.gov.uk/id/local-authority/32UF,Asset & Property,Fuel and Oil,17/10/2023,30036661,181.68 ,C H Jones Ltd
South Holland District Council,http://statistics.data.gov.uk/id/local-authority/32UF,Asset & Property,PCN Income,17/10/2023,30036666,"2,197.96 ",Broadgate Builders T/A Westlode Car Park
South Holland District Council,http://statistics.data.gov.uk/id/local-authority/32UF,Asset & Property,Professional and Contractors Fees,17/10/2023,30036653,"1,302.00 ",Clapham and Collinge Lp Client Account
South Holland District Council,http://statistics.data.gov.uk/id/local-authority/32UF,Asset & Property,Purchase of Buildings,17/10/2023,30037234,"53,700.00 ",Clapham and Collinge Lp Client Account
South Holland District Council,http://statistics.data.gov.uk/id/local-authority/32UF,Capital - Strategic Finance & Compliance,Purchase of Buildings,17/10/2023,30037234,"53,700.00 ",Clapham and Collinge Lp Client Account
South Holland District Council,http://statistics.data.gov.uk/id/local-authority/32UF,Democratic Services - Democratic,Other Miscellaneous Expenses,17/10/2023,30036650,"2,062.02 ",St Pauls Parish Church Council
South Holland District Council,http://statistics.data.gov.uk/id/local-authority/32UF,Democratic Services - Democratic,Other Miscellaneous Expenses,17/10/2023,30036665,"1,760.58 ",Whaplode Village Hall
South Holland District Council,http://statistics.data.gov.uk/id/local-authority/32UF,Democratic Services - Democratic,Other Miscellaneous Expenses,17/10/2023,30036667,"1,038.00 ",Cowbit St Mary's School Fund
South Holland District Council,http://statistics.data.gov.uk/id/local-authority/32UF,Democratic Services - Democratic,Other Miscellaneous Expenses,17/10/2023,30036701,790.00 ,Crowland Parish Council
South Holland District Council,http://statistics.data.gov.uk/id/local-authority/32UF,Democratic Services - Democratic,Other Miscellaneous Expenses,17/10/2023,30036726,750.00 ,Mencap (East Region)
South Holland District Council,http://statistics.data.gov.uk/id/local-authority/32UF,Democratic Services - Democratic,PSPS Non-Base Contract Costs,17/10/2023,30036304,675.00 ,Public Sector Partnership Services Ltd
South Holland District Council,http://statistics.data.gov.uk/id/local-authority/32UF,Economic Development,Grants and Contributions to Outside Bodies - No Service Received,17/10/2023,30036555,690.00 ,Classic Printers Crowland Ltd
South Holland District Council,http://statistics.data.gov.uk/id/local-authority/32UF,Environmental Services,Agency Staff,17/10/2023,30036730,"3,942.38 ",Quality Service Recruitment Ltd
South Holland District Council,http://statistics.data.gov.uk/id/local-authority/32UF,Environmental Services,Fuel and Oil,17/10/2023,30036661,"9,484.21 ",C H Jones Ltd
South Holland District Council,http://statistics.data.gov.uk/id/local-authority/32UF,Environmental Services,PCN Income,17/10/2023,30036666,"2,197.96 ",Broadgate Builders T/A Westlode Car Park
South Holland District Council,http://statistics.data.gov.uk/id/local-authority/32UF,Environmental Services,Transport Insurance Excess,17/10/2023,30036398,"1,025.00 ",Kents of Spalding Ltd
South Holland District Council,http://statistics.data.gov.uk/id/local-authority/32UF,Environmental Services,Workshop Parts,17/10/2023,30035916,550.92 ,Russells Kirbymoorside Ltd
South Holland District Council,http://statistics.data.gov.uk/id/local-authority/32UF,Environmental Services,Workshop Parts,17/10/2023,30036158,609.00 ,Gemco Equipment Ltd
South Holland District Council,http://statistics.data.gov.uk/id/local-authority/32UF,Finance,Purchase of Hardware,17/10/2023,30036655,"6,957.30 ",Public Sector Partnership Services Ltd
South Holland District Council,http://statistics.data.gov.uk/id/local-authority/32UF,Head of ICT and Digital,Purchase of Hardware,17/10/2023,30036655,"6,957.30 ",Public Sector Partnership Services Ltd
South Holland District Council,http://statistics.data.gov.uk/id/local-authority/32UF,Head of ICT and Digital,Telephone and Mobiles,17/10/2023,30036656,947.61 ,Public Sector Partnership Services Ltd
South Holland District Council,http://statistics.data.gov.uk/id/local-authority/32UF,Head of ICT and Digital,Telephone and Mobiles,17/10/2023,30036658,"4,599.18 ",Public Sector Partnership Services Ltd
South Holland District Council,http://statistics.data.gov.uk/id/local-authority/32UF,Leisure & Culture Communities,Professional and Contractors Fees,17/10/2023,30036296,560.00 ,South Lincs Security Limited
South Holland District Council,http://statistics.data.gov.uk/id/local-authority/32UF,Leisure & Culture Communities,Professional and Contractors Fees,17/10/2023,30036570,"1,046.00 ",South Lincs Security Limited
South Holland District Council,http://statistics.data.gov.uk/id/local-authority/32UF,AD Housing,Grants and Contributions to Outside Bodies - No Service Received,19/10/2023,30036454,"15,710.00 ",Astor Bannerman (Medical) Ltd
South Holland District Council,http://statistics.data.gov.uk/id/local-authority/32UF,AD Housing,Grants and Contributions to Outside Bodies - No Service Received,19/10/2023,30036727,"10,000.00 ",Lincolnshire Community Foundation
South Holland District Council,http://statistics.data.gov.uk/id/local-authority/32UF,AD Housing HRA,Agency Staff,19/10/2023,30036713,"1,295.00 ",�Personal Information Redacted�
South Holland District Council,http://statistics.data.gov.uk/id/local-authority/32UF,AD Housing HRA,Agency Staff,19/10/2023,30036760,"1,398.68 ",Integrity Plus Ltd
South Holland District Council,http://statistics.data.gov.uk/id/local-authority/32UF,AD Housing HRA,Agency Staff,19/10/2023,30036857,"1,105.93 ",�Personal Information Redacted�
South Holland District Council,http://statistics.data.gov.uk/id/local-authority/32UF,AD Housing HRA,Buildings Maintenance - Responsive,19/10/2023,30036576,"2,695.00 ",Boors Ltd
South Holland District Council,http://statistics.data.gov.uk/id/local-authority/32UF,AD Housing HRA,Buildings Maintenance - Responsive,19/10/2023,30036693,"2,350.00 ",Boors Ltd
South Holland District Council,http://statistics.data.gov.uk/id/local-authority/32UF,AD Housing HRA,Grounds Maintenance Contract (External),19/10/2023,30036936,"6,480.00 ",G W Engineering (Lincs) Ltd
South Holland District Council,http://statistics.data.gov.uk/id/local-authority/32UF,AD Housing HRA,Legal Fees,19/10/2023,30036593,"1,436.30 ",Capsticks Solicitors LLP
South Holland District Council,http://statistics.data.gov.uk/id/local-authority/32UF,AD Housing HRA,Materials and Consumables,19/10/2023,30036668,423.29 ,EPH Supplies Wholesale Ltd
South Holland District Council,http://statistics.data.gov.uk/id/local-authority/32UF,AD Housing HRA,Materials and Consumables,19/10/2023,30036754,617.12 ,EPH Supplies Wholesale Ltd
South Holland District Council,http://statistics.data.gov.uk/id/local-authority/32UF,AD Housing HRA,Staff Training Expenses (Non-Payroll),19/10/2023,30036140,665.30 ,Autec Training Ltd
South Holland District Council,http://statistics.data.gov.uk/id/local-authority/32UF,AD Housing HRA,Works to Buildings (Main Contractor),19/10/2023,30036851,"17,010.00 ",C G Godfrey Ltd
South Holland District Council,http://statistics.data.gov.uk/id/local-authority/32UF,AD Housing HRA,Works to Buildings (Main Contractor),19/10/2023,30036853,"17,930.40 ",C G Godfrey Ltd
South Holland District Council,http://statistics.data.gov.uk/id/local-authority/32UF,AD Housing HRA,Works to Buildings (Main Contractor),19/10/2023,30036940,"22,937.34 ",C.E.L. Group (1989) Limited
South Holland District Council,http://statistics.data.gov.uk/id/local-authority/32UF,AD Strategic Growth and Development,Agency Staff,19/10/2023,30036456,"4,684.20 ",G2 Recruitment Solutions
South Holland District Council,http://statistics.data.gov.uk/id/local-authority/32UF,AD Strategic Growth and Development,Agency Staff,19/10/2023,30036703,"2,342.10 ",G2 Recruitment Solutions
South Holland District Council,http://statistics.data.gov.uk/id/local-authority/32UF,AD Strategic Growth and Development,Grants and Contributions to Outside Bodies - No Service Received,19/10/2023,30036797,"14,957.88 ",Long Sutton Men's Shed - Youth Shed
South Holland District Council,http://statistics.data.gov.uk/id/local-authority/32UF,AD Strategic Growth and Development,Other Miscellaneous Expenses,19/10/2023,30036463,"1,643.50 ",Flamingo Flowers LTD
South Holland District Council,http://statistics.data.gov.uk/id/local-authority/32UF,AD Wellbeing and Community Leadership,Bed and Breakfast Accommodation (Homelessness Service),19/10/2023,30036811,956.66 ,G and A Hotels T A Woodlands Hotel
South Holland District Council,http://statistics.data.gov.uk/id/local-authority/32UF,AD Wellbeing and Community Leadership,Bed and Breakfast Accommodation (Homelessness Service),19/10/2023,30036814,"1,085.00 ",Anglia Motel
South Holland District Council,http://statistics.data.gov.uk/id/local-authority/32UF,AD Wellbeing and Community Leadership,Bed and Breakfast Accommodation (Homelessness Service),19/10/2023,30036815,"1,085.00 ",Anglia Motel
South Holland District Council,http://statistics.data.gov.uk/id/local-authority/32UF,AD Wellbeing and Community Leadership,Bed and Breakfast Accommodation (Homelessness Service),19/10/2023,30036816,"1,085.00 ",Anglia Motel
South Holland District Council,http://statistics.data.gov.uk/id/local-authority/32UF,AD Wellbeing and Community Leadership,Bed and Breakfast Accommodation (Homelessness Service),19/10/2023,30036818,"1,085.00 ",Anglia Motel
South Holland District Council,http://statistics.data.gov.uk/id/local-authority/32UF,AD Wellbeing and Community Leadership,Bed and Breakfast Accommodation (Homelessness Service),19/10/2023,30036819,"1,085.00 ",Anglia Motel
South Holland District Council,http://statistics.data.gov.uk/id/local-authority/32UF,AD Wellbeing and Community Leadership,Grants and Contributions to Outside Bodies - No Service Received,19/10/2023,30036454,"31,420.00 ",Astor Bannerman (Medical) Ltd
South Holland District Council,http://statistics.data.gov.uk/id/local-authority/32UF,AD Wellbeing and Community Leadership,Grants and Contributions to Outside Bodies - No Service Received,19/10/2023,30036727,"10,000.00 ",Lincolnshire Community Foundation
South Holland District Council,http://statistics.data.gov.uk/id/local-authority/32UF,Asset & Property,Buildings Maintenance - Programmed,19/10/2023,30036572,952.50 ,Stanair Industrial Door Services Ltd
South Holland District Council,http://statistics.data.gov.uk/id/local-authority/32UF,Asset & Property,Buildings Maintenance - Responsive,19/10/2023,30036132,613.40 ,Hygienex LTd t/a HSG Uk
South Holland District Council,http://statistics.data.gov.uk/id/local-authority/32UF,Asset & Property,Professional and Contractors Fees,19/10/2023,30036550,"1,817.67 ",Lincolnshire County Council
South Holland District Council,http://statistics.data.gov.uk/id/local-authority/32UF,Asset & Property,Professional and Contractors Fees,19/10/2023,30036551,"1,200.10 ",Lincolnshire County Council
South Holland District Council,http://statistics.data.gov.uk/id/local-authority/32UF,Democratic Services - Democratic,Course Fees,19/10/2023,30036743,495.00 ,Civica Election Services
South Holland District Council,http://statistics.data.gov.uk/id/local-authority/32UF,Democratic Services - Democratic,Other Miscellaneous Expenses,19/10/2023,30036792,850.00 ,Spalding Hockey Club
South Holland District Council,http://statistics.data.gov.uk/id/local-authority/32UF,Democratic Services - Democratic,Other Miscellaneous Expenses,19/10/2023,30036871,"6,350.00 ",�Personal Information Redacted�
South Holland District Council,http://statistics.data.gov.uk/id/local-authority/32UF,Economic Development,Advertising - Events,19/10/2023,30036846,"2,279.00 ",Social Change UK
South Holland District Council,http://statistics.data.gov.uk/id/local-authority/32UF,Environmental Services,Agency Staff,19/10/2023,30036155,"1,198.86 ",Questech Recruitment Limited
South Holland District Council,http://statistics.data.gov.uk/id/local-authority/32UF,Environmental Services,Agency Staff,19/10/2023,30036801,654.88 ,GI Group (previously Encore)
South Holland District Council,http://statistics.data.gov.uk/id/local-authority/32UF,Environmental Services,Agency Staff,19/10/2023,30036802,972.46 ,GI Group (previously Encore)
South Holland District Council,http://statistics.data.gov.uk/id/local-authority/32UF,Environmental Services,Agency Staff,19/10/2023,30036804,"5,367.09 ",Integrity Plus Ltd
South Holland District Council,http://statistics.data.gov.uk/id/local-authority/32UF,Environmental Services,Materials and Consumables,19/10/2023,30036847,605.60 ,Glenside Nurseries Ltd
South Holland District Council,http://statistics.data.gov.uk/id/local-authority/32UF,Environmental Services,Professional and Contractors Fees,19/10/2023,30036550,"1,817.67 ",Lincolnshire County Council
South Holland District Council,http://statistics.data.gov.uk/id/local-authority/32UF,Environmental Services,Professional and Contractors Fees,19/10/2023,30036551,"1,200.10 ",Lincolnshire County Council
South Holland District Council,http://statistics.data.gov.uk/id/local-authority/32UF,Finance,Shared Management,19/10/2023,30036880,"78,206.51 ",Boston Borough Council
South Holland District Council,http://statistics.data.gov.uk/id/local-authority/32UF,Leisure & Culture Communities,Other Income,19/10/2023,30036777,"-3,752.50 ",Act II
South Holland District Council,http://statistics.data.gov.uk/id/local-authority/32UF,Leisure & Culture Communities,Other Income,19/10/2023,30036934,"-2,125.20 ",Live Promotions Events Ltd
South Holland District Council,http://statistics.data.gov.uk/id/local-authority/32UF,Leisure & Culture Communities,Other Miscellaneous Expenses,19/10/2023,30036856,"2,374.00 ",The Joker Entertainment
South Holland District Council,http://statistics.data.gov.uk/id/local-authority/32UF,Leisure & Culture Communities,Payments to Bodies in Respect of Income Collected,19/10/2023,30036777,"4,695.00 ",Act II
South Holland District Council,http://statistics.data.gov.uk/id/local-authority/32UF,Leisure & Culture Communities,Payments to Bodies in Respect of Income Collected,19/10/2023,30036934,"7,480.00 ",Live Promotions Events Ltd
South Holland District Council,http://statistics.data.gov.uk/id/local-authority/32UF,AD Housing,Gas Servicing,24/10/2023,30035949,"1,015.26 ",Aaron Services Ltd
South Holland District Council,http://statistics.data.gov.uk/id/local-authority/32UF,AD Housing,Gas Servicing,24/10/2023,30036575,619.53 ,Aaron Services Ltd
South Holland District Council,http://statistics.data.gov.uk/id/local-authority/32UF,AD Housing HRA,Agency Staff,24/10/2023,30036358,"1,057.90 ",�Personal Information Redacted�
South Holland District Council,http://statistics.data.gov.uk/id/local-authority/32UF,AD Housing HRA,Agency Staff,24/10/2023,30036825,"1,678.86 ",�Personal Information Redacted�
South Holland District Council,http://statistics.data.gov.uk/id/local-authority/32UF,AD Housing HRA,Agency Staff,24/10/2023,30036921,"1,295.00 ",�Personal Information Redacted�
South Holland District Council,http://statistics.data.gov.uk/id/local-authority/32UF,AD Housing HRA,Buildings Maintenance - Responsive,24/10/2023,30036859,"1,120.00 ",Boors Ltd
South Holland District Council,http://statistics.data.gov.uk/id/local-authority/32UF,AD Housing HRA,Buildings Maintenance - Responsive,24/10/2023,30036874,660.00 ,Boors Ltd
South Holland District Council,http://statistics.data.gov.uk/id/local-authority/32UF,AD Housing HRA,Buildings Maintenance - Responsive,24/10/2023,30036879,482.00 ,Boors Ltd
South Holland District Council,http://statistics.data.gov.uk/id/local-authority/32UF,AD Housing HRA,Buildings Maintenance - Responsive,24/10/2023,30036881,"1,120.00 ",Boors Ltd
South Holland District Council,http://statistics.data.gov.uk/id/local-authority/32UF,AD Housing HRA,Buildings Maintenance - Responsive,24/10/2023,30036882,"1,120.00 ",Boors Ltd
South Holland District Council,http://statistics.data.gov.uk/id/local-authority/32UF,AD Housing HRA,Buildings Maintenance - Responsive,24/10/2023,30036888,975.00 ,Boors Ltd
South Holland District Council,http://statistics.data.gov.uk/id/local-authority/32UF,AD Housing HRA,Buildings Maintenance - Responsive,24/10/2023,30036891,760.00 ,Boors Ltd
South Holland District Council,http://statistics.data.gov.uk/id/local-authority/32UF,AD Housing HRA,Buildings Maintenance - Responsive,24/10/2023,30036893,595.00 ,Boors Ltd
South Holland District Council,http://statistics.data.gov.uk/id/local-authority/32UF,AD Housing HRA,Buildings Maintenance - Responsive,24/10/2023,30036895,525.00 ,Boors Ltd
South Holland District Council,http://statistics.data.gov.uk/id/local-authority/32UF,AD Housing HRA,Buildings Maintenance - Responsive,24/10/2023,30036899,615.00 ,Boors Ltd
South Holland District Council,http://statistics.data.gov.uk/id/local-authority/32UF,AD Housing HRA,Buildings Maintenance - Responsive,24/10/2023,30036908,750.00 ,Boors Ltd
South Holland District Council,http://statistics.data.gov.uk/id/local-authority/32UF,AD Housing HRA,Buildings Maintenance - Responsive,24/10/2023,30036918,450.00 ,Boors Ltd
South Holland District Council,http://statistics.data.gov.uk/id/local-authority/32UF,AD Housing HRA,Buildings Maintenance - Responsive,24/10/2023,30036920,455.00 ,Boors Ltd
South Holland District Council,http://statistics.data.gov.uk/id/local-authority/32UF,AD Housing HRA,Buildings Maintenance - Responsive,24/10/2023,30036922,795.00 ,Boors Ltd
South Holland District Council,http://statistics.data.gov.uk/id/local-authority/32UF,AD Housing HRA,Buildings Maintenance - Responsive,24/10/2023,30036927,"1,120.00 ",Boors Ltd
South Holland District Council,http://statistics.data.gov.uk/id/local-authority/32UF,AD Housing HRA,Cleaning Contract,24/10/2023,30036329,"1,052.48 ",aAFD services Ltd
South Holland District Council,http://statistics.data.gov.uk/id/local-authority/32UF,AD Housing HRA,Computer Software Licence Costs,24/10/2023,30036130,"1,500.00 ",NEC Software Solutions UK Ltd
South Holland District Council,http://statistics.data.gov.uk/id/local-authority/32UF,AD Housing HRA,Damp Proofing,24/10/2023,30036354,818.53 ,Envirovent Ltd
South Holland District Council,http://statistics.data.gov.uk/id/local-authority/32UF,AD Housing HRA,Furniture and Equipment,24/10/2023,30036220,"12,279.60 ",Tunstall Healthcare UK Ltd
South Holland District Council,http://statistics.data.gov.uk/id/local-authority/32UF,AD Housing HRA,Furniture and Equipment,24/10/2023,30036221,"12,976.20 ",Tunstall Healthcare UK Ltd
South Holland District Council,http://statistics.data.gov.uk/id/local-authority/32UF,AD Housing HRA,Legal Fees,24/10/2023,30036333,926.67 ,Capsticks Solicitors LLP
South Holland District Council,http://statistics.data.gov.uk/id/local-authority/32UF,AD Housing HRA,Professional and Contractors Fees,24/10/2023,30036180,"1,050.00 ",Lakeside Water & Building Services Ltd
South Holland District Council,http://statistics.data.gov.uk/id/local-authority/32UF,AD Housing HRA,Professional and Contractors Fees,24/10/2023,30036269,"1,109.04 ",Lakeside Water & Building Services Ltd
South Holland District Council,http://statistics.data.gov.uk/id/local-authority/32UF,AD Housing HRA,Professional and Contractors Fees,24/10/2023,30036271,497.25 ,Lakeside Water & Building Services Ltd
South Holland District Council,http://statistics.data.gov.uk/id/local-authority/32UF,AD Housing HRA,Professional and Contractors Fees,24/10/2023,30036272,672.65 ,Lakeside Water & Building Services Ltd
South Holland District Council,http://statistics.data.gov.uk/id/local-authority/32UF,AD Housing HRA,Professional and Contractors Fees,24/10/2023,30036274,"2,431.55 ",Lakeside Water & Building Services Ltd
South Holland District Council,http://statistics.data.gov.uk/id/local-authority/32UF,AD Housing HRA,Professional and Contractors Fees,24/10/2023,30036278,888.25 ,Lakeside Water & Building Services Ltd
South Holland District Council,http://statistics.data.gov.uk/id/local-authority/32UF,AD Housing HRA,Professional and Contractors Fees,24/10/2023,30036284,505.47 ,Lakeside Water & Building Services Ltd
South Holland District Council,http://statistics.data.gov.uk/id/local-authority/32UF,AD Housing HRA,Professional and Contractors Fees,24/10/2023,30036389,928.00 ,Language Line Ltd
South Holland District Council,http://statistics.data.gov.uk/id/local-authority/32UF,AD Housing HRA,Professional and Contractors Fees,24/10/2023,30036497,"1,050.00 ",Ark Property Centre
South Holland District Council,http://statistics.data.gov.uk/id/local-authority/32UF,AD Housing HRA,Roof Repairs,24/10/2023,30036493,"14,839.23 ",Hodgson Sayers Ltd
South Holland District Council,http://statistics.data.gov.uk/id/local-authority/32UF,AD Housing HRA,Void Repairs,24/10/2023,30036915,"1,120.00 ",Boors Ltd
South Holland District Council,http://statistics.data.gov.uk/id/local-authority/32UF,AD Housing HRA,Works to Buildings (Main Contractor),24/10/2023,30036513,"23,585.93 ",Hodgson Sayers Ltd
South Holland District Council,http://statistics.data.gov.uk/id/local-authority/32UF,AD Housing HRA,Works to Buildings (Main Contractor),24/10/2023,30036515,"122,170.55 ",Hodgson Sayers Ltd
South Holland District Council,http://statistics.data.gov.uk/id/local-authority/32UF,AD Housing HRA,Works to Buildings (Main Contractor),24/10/2023,30036706,"41,199.50 ",Westone Housing Ltd
South Holland District Council,http://statistics.data.gov.uk/id/local-authority/32UF,AD Housing HRA,Works to Buildings (Main Contractor),24/10/2023,30036753,"28,317.95 ",McIntyre Compliance Services
South Holland District Council,http://statistics.data.gov.uk/id/local-authority/32UF,AD Strategic Growth and Development,Grants and Contributions to Outside Bodies - No Service Received,24/10/2023,30036992,"10,000.00 ",NBV Enterprise Solutions Limited
South Holland District Council,http://statistics.data.gov.uk/id/local-authority/32UF,AD Strategic Growth and Development,Professional Fees,24/10/2023,30036516,"3,720.00 ",Focus Consultants 2010 LLP
South Holland District Council,http://statistics.data.gov.uk/id/local-authority/32UF,AD Wellbeing and Community Leadership,Bed and Breakfast Accommodation (Homelessness Service),24/10/2023,30036678,"1,050.00 ",The Lord Grey Hotel t/a The lord Grey Ltd
South Holland District Council,http://statistics.data.gov.uk/id/local-authority/32UF,AD Wellbeing and Community Leadership,Bed and Breakfast Accommodation (Homelessness Service),24/10/2023,30036810,"1,083.34 ",G and A Hotels T A Woodlands Hotel
South Holland District Council,http://statistics.data.gov.uk/id/local-authority/32UF,AD Wellbeing and Community Leadership,Computer Software Licence Costs,24/10/2023,30036130,"3,000.00 ",NEC Software Solutions UK Ltd
South Holland District Council,http://statistics.data.gov.uk/id/local-authority/32UF,AD Wellbeing and Community Leadership,Grants and Contributions to Outside Bodies - No Service Received,24/10/2023,30036807,"2,023.08 ",Ark Property Centre
South Holland District Council,http://statistics.data.gov.uk/id/local-authority/32UF,AD Wellbeing and Community Leadership,Grants and Contributions to Outside Bodies - No Service Received,24/10/2023,30036986,"19,500.00 ",Martin Bailey
South Holland District Council,http://statistics.data.gov.uk/id/local-authority/32UF,AD Wellbeing and Community Leadership HRA,Works to Buildings (Main Contractor),24/10/2023,30036706,"41,199.50 ",Westone Housing Ltd
South Holland District Council,http://statistics.data.gov.uk/id/local-authority/32UF,Asset & Property,Buildings Maintenance - Responsive,24/10/2023,30036298,463.40 ,Hygienex LTd t/a HSG Uk
South Holland District Council,http://statistics.data.gov.uk/id/local-authority/32UF,Asset & Property,Gas,24/10/2023,30036830,807.37 ,Espo Gas and Electricity
South Holland District Council,http://statistics.data.gov.uk/id/local-authority/32UF,Asset & Property,Professional and Contractors Fees,24/10/2023,30036179,702.87 ,Kings Armoured Security Services Ltd
South Holland District Council,http://statistics.data.gov.uk/id/local-authority/32UF,Democratic Services - Democratic,Other Miscellaneous Expenses,24/10/2023,30036935,"1,300.00 ",Boxes of Hope CIC
South Holland District Council,http://statistics.data.gov.uk/id/local-authority/32UF,Democratic Services - Democratic,Postages,24/10/2023,30036175,"1,506.14 ",Civica Election Services
South Holland District Council,http://statistics.data.gov.uk/id/local-authority/32UF,Democratic Services - Legal,Legal Fees Non-Routine,24/10/2023,30036638,"4,000.00 ",Browne Jacobson LLP Office Account
South Holland District Council,http://statistics.data.gov.uk/id/local-authority/32UF,Economic Development,Grants and Contributions to Outside Bodies - No Service Received,24/10/2023,30036341,"1,266.58 ",Boston Borough Council
South Holland District Council,http://statistics.data.gov.uk/id/local-authority/32UF,Environmental Services,Agency Staff,24/10/2023,30036767,858.96 ,The Best Connection Group Ltd
South Holland District Council,http://statistics.data.gov.uk/id/local-authority/32UF,Environmental Services,Agency Staff,24/10/2023,30036947,"2,584.93 ",The Best Connection Group Ltd
South Holland District Council,http://statistics.data.gov.uk/id/local-authority/32UF,Environmental Services,Clothing Uniforms and Laundry,24/10/2023,30036698,702.03 ,SMI Group
South Holland District Council,http://statistics.data.gov.uk/id/local-authority/32UF,Environmental Services,Insurance,24/10/2023,30036951,"2,262.00 ",Fen Developments
South Holland District Council,http://statistics.data.gov.uk/id/local-authority/32UF,Environmental Services,Postages,24/10/2023,30036561,"25,463.20 ",Systematic Print Management Limited T/A Systematic
South Holland District Council,http://statistics.data.gov.uk/id/local-authority/32UF,Environmental Services,Professional and Contractors Fees,24/10/2023,30036179,702.87 ,Kings Armoured Security Services Ltd
South Holland District Council,http://statistics.data.gov.uk/id/local-authority/32UF,Leisure & Culture Communities,Computer Hardware Maintenance,24/10/2023,30036447,"1,423.40 ",Spektrix Ltd
South Holland District Council,http://statistics.data.gov.uk/id/local-authority/32UF,Leisure & Culture Communities,Furniture and Equipment,24/10/2023,30036601,441.56 ,Veolia Es UK Ltd
South Holland District Council,http://statistics.data.gov.uk/id/local-authority/32UF,Leisure & Culture Communities,Gas,24/10/2023,30036831,897.79 ,Espo Gas and Electricity
South Holland District Council,http://statistics.data.gov.uk/id/local-authority/32UF,Leisure & Culture Communities,Other Miscellaneous Expenses,24/10/2023,30036773,"1,450.00 ",Popcorn Media
South Holland District Council,http://statistics.data.gov.uk/id/local-authority/32UF,Leisure & Culture Communities,Other Miscellaneous Expenses,24/10/2023,30036959,900.00 ,Dale Harrison Building and Restoration Ltd
South Holland District Council,http://statistics.data.gov.uk/id/local-authority/32UF,Planning,Agency - Vacant Post Cover,24/10/2023,30036359,"9,452.00 ",GHM Planning Ltd
South Holland District Council,http://statistics.data.gov.uk/id/local-authority/32UF,Public Protection,Professional and Contractors Fees,24/10/2023,30036373,750.00 ,Rolver Oak Kennels and Cattery
South Holland District Council,http://statistics.data.gov.uk/id/local-authority/32UF,Public Protection,Professional and Contractors Fees,24/10/2023,30036722,"1,330.00 ",G2 Recruitment Solutions
South Holland District Council,http://statistics.data.gov.uk/id/local-authority/32UF,AD Housing,Professional and Contractors Fees,26/10/2023,30036395,180.00 ,Wilks Head and Eve LLP
South Holland District Council,http://statistics.data.gov.uk/id/local-authority/32UF,AD Housing HRA,Gas Servicing,26/10/2023,30036384,"24,903.79 ",Aaron Services Ltd
South Holland District Council,http://statistics.data.gov.uk/id/local-authority/32UF,AD Housing HRA,Professional and Contractors Fees,26/10/2023,30036337,"8,948.75 ",ARP Research Ltd
South Holland District Council,http://statistics.data.gov.uk/id/local-authority/32UF,AD Housing HRA,Professional and Contractors Fees,26/10/2023,30036362,700.00 ,Agile Enginnering
South Holland District Council,http://statistics.data.gov.uk/id/local-authority/32UF,AD Housing HRA,Professional and Contractors Fees,26/10/2023,30036395,"1,845.00 ",Wilks Head and Eve LLP
South Holland District Council,http://statistics.data.gov.uk/id/local-authority/32UF,AD Housing HRA,Renewable Energy Servicing,26/10/2023,30036381,"2,851.90 ",Aaron Services Ltd
South Holland District Council,http://statistics.data.gov.uk/id/local-authority/32UF,AD Housing HRA,Works to Buildings (Main Contractor),26/10/2023,30037084,"14,421.76 ",Woodstone Fire Ltd
South Holland District Council,http://statistics.data.gov.uk/id/local-authority/32UF,AD Strategic Growth and Development,Professional Fees,26/10/2023,30037076,650.00 ,Birketts Solicitors LLP
South Holland District Council,http://statistics.data.gov.uk/id/local-authority/32UF,AD Wellbeing and Community Leadership,Bed and Breakfast Accommodation (Homelessness Service),26/10/2023,30037089,956.66 ,G and A Hotels T A Woodlands Hotel
South Holland District Council,http://statistics.data.gov.uk/id/local-authority/32UF,AD Wellbeing and Community Leadership,Bed and Breakfast Accommodation (Homelessness Service),26/10/2023,30037091,"1,083.34 ",G and A Hotels T A Woodlands Hotel
South Holland District Council,http://statistics.data.gov.uk/id/local-authority/32UF,Asset & Property,Agency Staff,26/10/2023,30036759,"1,267.62 ",Integrity Plus Ltd
South Holland District Council,http://statistics.data.gov.uk/id/local-authority/32UF,Asset & Property,Agency Staff,26/10/2023,30036761,"1,475.11 ",Integrity Plus Ltd
South Holland District Council,http://statistics.data.gov.uk/id/local-authority/32UF,Asset & Property,Buildings Maintenance - Programmed,26/10/2023,30036991,"1,486.00 ",Glen Farrow UK Ltd
South Holland District Council,http://statistics.data.gov.uk/id/local-authority/32UF,Asset & Property,Buildings Maintenance - Responsive,26/10/2023,30036958,"1,900.00 ",Dale Harrison Building and Restoration Ltd
South Holland District Council,http://statistics.data.gov.uk/id/local-authority/32UF,Asset & Property,Buildings Maintenance - Responsive,26/10/2023,30037109,870.00 ,LJ Landscapes Ltd
South Holland District Council,http://statistics.data.gov.uk/id/local-authority/32UF,Asset & Property,Professional and Contractors Fees,26/10/2023,30036294,"2,554.99 ",Chase Services Group LTD
South Holland District Council,http://statistics.data.gov.uk/id/local-authority/32UF,Democratic Services - Democratic,Furniture and Equipment,26/10/2023,30036567,427.90 ,E File UK Ltd
South Holland District Council,http://statistics.data.gov.uk/id/local-authority/32UF,Environmental Services,Agency Staff,26/10/2023,30036639,"1,074.84 ",Questech Recruitment Limited
South Holland District Council,http://statistics.data.gov.uk/id/local-authority/32UF,Environmental Services,Agency Staff,26/10/2023,30036977,636.76 ,GI Group (previously Encore)
South Holland District Council,http://statistics.data.gov.uk/id/local-authority/32UF,Environmental Services,Agency Staff,26/10/2023,30037065,"3,430.49 ",Quality Service Recruitment Ltd
South Holland District Council,http://statistics.data.gov.uk/id/local-authority/32UF,Environmental Services,Agency Staff,26/10/2023,30037099,"4,726.90 ",Integrity Plus Ltd
South Holland District Council,http://statistics.data.gov.uk/id/local-authority/32UF,Environmental Services,Staff Training Expenses (Non-Payroll),26/10/2023,30037108,"1,068.00 ",Apse
South Holland District Council,http://statistics.data.gov.uk/id/local-authority/32UF,Head of ICT and Digital,Computer Hardware Maintenance,26/10/2023,30036374,"2,840.00 ",Cammax Limited
South Holland District Council,http://statistics.data.gov.uk/id/local-authority/32UF,Leisure & Culture Communities,Other Miscellaneous Expenses,26/10/2023,30037070,458.00 ,Dick Ropa Entertainments
South Holland District Council,http://statistics.data.gov.uk/id/local-authority/32UF,Leisure & Culture Communities,Performers and Entertainers Fees,26/10/2023,30037083,"6,101.77 ",Entertainers Show Providers Ltd
South Holland District Council,http://statistics.data.gov.uk/id/local-authority/32UF,Planning,Professional and Contractors Fees,26/10/2023,30036365,"4,000.00 ",CP Viability Ltd
South Holland District Council,http://statistics.data.gov.uk/id/local-authority/32UF,Planning,Professional and Contractors Fees,26/10/2023,30036367,"2,500.00 ",CP Viability Ltd
South Holland District Council,http://statistics.data.gov.uk/id/local-authority/32UF,Public Protection,Furniture and Equipment,26/10/2023,30036635,955.52 ,Vip-System Ltd
South Holland District Council,http://statistics.data.gov.uk/id/local-authority/32UF,Public Protection,Professional and Contractors Fees,26/10/2023,30036505,500.00 ,Pengelly and Mizen Vets
South Holland District Council,http://statistics.data.gov.uk/id/local-authority/32UF,Public Protection,Professional and Contractors Fees,26/10/2023,30036506,541.67 ,Pengelly and Mizen Vets
South Holland District Council,http://statistics.data.gov.uk/id/local-authority/32UF,AD Housing HRA,Fuel and Oil,27/10/2023,30036985,905.43 ,C H Jones Ltd
South Holland District Council,http://statistics.data.gov.uk/id/local-authority/32UF,Asset & Property,Fuel and Oil,27/10/2023,30036985,209.09 ,C H Jones Ltd
South Holland District Council,http://statistics.data.gov.uk/id/local-authority/32UF,Environmental Services,Fuel and Oil,27/10/2023,30036985,"8,902.53 ",C H Jones Ltd
South Holland District Council,http://statistics.data.gov.uk/id/local-authority/32UF,Public Protection,Fuel and Oil,27/10/2023,30036985,45.77 ,C H Jones Ltd
South Holland District Council,http://statistics.data.gov.uk/id/local-authority/32UF,AD Housing HRA,Agency Staff,31/10/2023,30036591,774.80 ,�Personal Information Redacted�
South Holland District Council,http://statistics.data.gov.uk/id/local-authority/32UF,AD Housing HRA,Agency Staff,31/10/2023,30036852,"1,102.60 ",�Personal Information Redacted�
South Holland District Council,http://statistics.data.gov.uk/id/local-authority/32UF,AD Housing HRA,Asbestos Works HRA,31/10/2023,30036610,591.00 ,Reactive Integrated Services
South Holland District Council,http://statistics.data.gov.uk/id/local-authority/32UF,AD Housing HRA,Asbestos Works HRA,31/10/2023,30036690,591.00 ,Reactive Integrated Services
South Holland District Council,http://statistics.data.gov.uk/id/local-authority/32UF,AD Housing HRA,Buildings Maintenance - Responsive,31/10/2023,30037028,909.86 ,Healthguard Limited
South Holland District Council,http://statistics.data.gov.uk/id/local-authority/32UF,AD Housing HRA,Buildings Maintenance - Responsive,31/10/2023,30037159,585.00 ,�Personal Information Redacted�
South Holland District Council,http://statistics.data.gov.uk/id/local-authority/32UF,AD Housing HRA,Buildings Maintenance - Responsive,31/10/2023,30037162,695.00 ,�Personal Information Redacted�
South Holland District Council,http://statistics.data.gov.uk/id/local-authority/32UF,AD Housing HRA,Buildings Maintenance - Responsive,31/10/2023,30037164,595.00 ,�Personal Information Redacted�
South Holland District Council,http://statistics.data.gov.uk/id/local-authority/32UF,AD Housing HRA,Buildings Maintenance - Responsive,31/10/2023,30037214,"2,995.00 ",�Personal Information Redacted�
South Holland District Council,http://statistics.data.gov.uk/id/local-authority/32UF,AD Housing HRA,Buildings Maintenance - Responsive,31/10/2023,30037286,"45,374.91 ",Mill Lock Construction
South Holland District Council,http://statistics.data.gov.uk/id/local-authority/32UF,AD Housing HRA,Drain Repairs,31/10/2023,30036573,"9,232.50 ",Dalrod Drainage Solutions
South Holland District Council,http://statistics.data.gov.uk/id/local-authority/32UF,AD Housing HRA,Legal Fees,31/10/2023,30036954,750.00 ,Capsticks Solicitors LLP
South Holland District Council,http://statistics.data.gov.uk/id/local-authority/32UF,AD Housing HRA,Materials and Consumables,31/10/2023,30037121,416.75 ,Tonwood Home Hardware Holbeach
South Holland District Council,http://statistics.data.gov.uk/id/local-authority/32UF,AD Housing HRA,Roof Repairs,31/10/2023,30037168,"1,690.00 ",Kev Forman Roofing Ltd
South Holland District Council,http://statistics.data.gov.uk/id/local-authority/32UF,AD Housing HRA,Roof Repairs,31/10/2023,30037169,490.00 ,Kev Forman Roofing Ltd
South Holland District Council,http://statistics.data.gov.uk/id/local-authority/32UF,AD Housing HRA,Roof Repairs,31/10/2023,30037222,770.00 ,Kev Forman Roofing Ltd
South Holland District Council,http://statistics.data.gov.uk/id/local-authority/32UF,AD Housing HRA,Void Repairs,31/10/2023,30037192,"1,533.26 ",andrew Hicks Ltd
South Holland District Council,http://statistics.data.gov.uk/id/local-authority/32UF,AD Housing HRA,Void Repairs,31/10/2023,30037208,568.83 ,andrew Hicks Ltd
South Holland District Council,http://statistics.data.gov.uk/id/local-authority/32UF,AD Strategic Growth and Development,Grants and Contributions to Outside Bodies - No Service Received,31/10/2023,30036466,"7,124.00 ",Spalding Gentlemen's Society
South Holland District Council,http://statistics.data.gov.uk/id/local-authority/32UF,AD Strategic Growth and Development,Grants and Contributions to Outside Bodies - No Service Received,31/10/2023,30037020,"7,124.00 ",Spalding Gentlemen's Society
South Holland District Council,http://statistics.data.gov.uk/id/local-authority/32UF,AD Wellbeing and Community Leadership,Bed and Breakfast Accommodation (Homelessness Service),31/10/2023,30037056,"1,395.00 ",Anglia Motel
South Holland District Council,http://statistics.data.gov.uk/id/local-authority/32UF,AD Wellbeing and Community Leadership,Bed and Breakfast Accommodation (Homelessness Service),31/10/2023,30037057,"1,085.00 ",Anglia Motel
South Holland District Council,http://statistics.data.gov.uk/id/local-authority/32UF,AD Wellbeing and Community Leadership,Bed and Breakfast Accommodation (Homelessness Service),31/10/2023,30037058,"1,085.00 ",Anglia Motel
South Holland District Council,http://statistics.data.gov.uk/id/local-authority/32UF,AD Wellbeing and Community Leadership,Bed and Breakfast Accommodation (Homelessness Service),31/10/2023,30037059,"1,085.00 ",Anglia Motel
South Holland District Council,http://statistics.data.gov.uk/id/local-authority/32UF,AD Wellbeing and Community Leadership,Bed and Breakfast Accommodation (Homelessness Service),31/10/2023,30037060,"1,240.00 ",Anglia Motel
South Holland District Council,http://statistics.data.gov.uk/id/local-authority/32UF,AD Wellbeing and Community Leadership,Bed and Breakfast Accommodation (Homelessness Service),31/10/2023,30037061,"1,240.00 ",Anglia Motel
South Holland District Council,http://statistics.data.gov.uk/id/local-authority/32UF,AD Wellbeing and Community Leadership,Bed and Breakfast Accommodation (Homelessness Service),31/10/2023,30037062,"1,395.00 ",Anglia Motel
South Holland District Council,http://statistics.data.gov.uk/id/local-authority/32UF,AD Wellbeing and Community Leadership,Bed and Breakfast Accommodation (Homelessness Service),31/10/2023,30037063,"1,085.00 ",Anglia Motel
South Holland District Council,http://statistics.data.gov.uk/id/local-authority/32UF,AD Wellbeing and Community Leadership,Bed and Breakfast Accommodation (Homelessness Service),31/10/2023,30037287,"1,085.00 ",Anglia Motel
South Holland District Council,http://statistics.data.gov.uk/id/local-authority/32UF,AD Wellbeing and Community Leadership,Bed and Breakfast Accommodation (Homelessness Service),31/10/2023,30037289,"1,085.00 ",Anglia Motel
South Holland District Council,http://statistics.data.gov.uk/id/local-authority/32UF,AD Wellbeing and Community Leadership,Bed and Breakfast Accommodation (Homelessness Service),31/10/2023,30037292,"1,085.00 ",Anglia Motel
South Holland District Council,http://statistics.data.gov.uk/id/local-authority/32UF,AD Wellbeing and Community Leadership,Bed and Breakfast Accommodation (Homelessness Service),31/10/2023,30037294,"1,085.00 ",Anglia Motel
South Holland District Council,http://statistics.data.gov.uk/id/local-authority/32UF,Asset & Property,Buildings Maintenance - Programmed,31/10/2023,30035986,575.00 ,Alan Wood Partnership Ltd
South Holland District Council,http://statistics.data.gov.uk/id/local-authority/32UF,Asset & Property,Buildings Maintenance - Programmed,31/10/2023,30036845,550.00 ,Elite Electrical (Eastern) Ltd
South Holland District Council,http://statistics.data.gov.uk/id/local-authority/32UF,Asset & Property,Buildings Maintenance - Programmed,31/10/2023,30036945,"3,211.53 ",Wrights Flooring and Carpets Ltd
South Holland District Council,http://statistics.data.gov.uk/id/local-authority/32UF,Asset & Property,Buildings Maintenance - Responsive,31/10/2023,30036592,520.00 ,Dale Harrison Building and Restoration Ltd
South Holland District Council,http://statistics.data.gov.uk/id/local-authority/32UF,Asset & Property,Income Collected on Behalf of External Organisations,31/10/2023,30037203,"3,213.15 ",Broadgate Builders T/A Westlode Car Park
South Holland District Council,http://statistics.data.gov.uk/id/local-authority/32UF,Asset & Property,Professional and Contractors Fees,31/10/2023,30037157,"1,280.00 ",Messrs Longstaff and Co
South Holland District Council,http://statistics.data.gov.uk/id/local-authority/32UF,Asset & Property,Works to Buildings (Main Contractor),31/10/2023,30037187,"2,500.00 ",CIA Fire 7 Security Ltd
South Holland District Council,http://statistics.data.gov.uk/id/local-authority/32UF,Capital - Strategic Finance & Compliance,Works to Buildings (Main Contractor),31/10/2023,30037187,"2,500.00 ",CIA Fire 7 Security Ltd
South Holland District Council,http://statistics.data.gov.uk/id/local-authority/32UF,Democratic Services - Democratic,Course Fees,31/10/2023,30036524,495.00 ,Civica Election Services
South Holland District Council,http://statistics.data.gov.uk/id/local-authority/32UF,Economic Development,Telephone and Mobiles,31/10/2023,30037129,"1,101.00 ",Vodafone Ltd
South Holland District Council,http://statistics.data.gov.uk/id/local-authority/32UF,Environmental Services,Agency Staff,31/10/2023,30037024,"1,056.11 ",GI Group (previously Encore)
South Holland District Council,http://statistics.data.gov.uk/id/local-authority/32UF,Environmental Services,Agency Staff,31/10/2023,30037161,"1,934.70 ",Quality Service Recruitment Ltd
South Holland District Council,http://statistics.data.gov.uk/id/local-authority/32UF,Environmental Services,Agency Staff,31/10/2023,30037163,"1,031.01 ",GI Group (previously Encore)
South Holland District Council,http://statistics.data.gov.uk/id/local-authority/32UF,Environmental Services,Agency Staff,31/10/2023,30037165,"3,628.72 ",Integrity Plus Ltd
South Holland District Council,http://statistics.data.gov.uk/id/local-authority/32UF,Environmental Services,Agency Staff,31/10/2023,30037282,833.61 ,The Best Connection Group Ltd
South Holland District Council,http://statistics.data.gov.uk/id/local-authority/32UF,Environmental Services,Agency Staff,31/10/2023,30037284,"2,494.64 ",The Best Connection Group Ltd
South Holland District Council,http://statistics.data.gov.uk/id/local-authority/32UF,Environmental Services,Income Collected on Behalf of External Organisations,31/10/2023,30037203,"3,213.15 ",Broadgate Builders T/A Westlode Car Park
South Holland District Council,http://statistics.data.gov.uk/id/local-authority/32UF,Environmental Services,Maintenance,31/10/2023,30037133,"1,094.46 ",Spalding MOT Repair Centre
South Holland District Council,http://statistics.data.gov.uk/id/local-authority/32UF,Environmental Services,Materials and Consumables,31/10/2023,30036392,"8,403.68 ",Berry BPI Refuse
South Holland District Council,http://statistics.data.gov.uk/id/local-authority/32UF,Environmental Services,Staff Training Expenses (Non-Payroll),31/10/2023,30037167,"1,421.00 ",OXFORD PROFESSIONAL EDUCATION GROUP
South Holland District Council,http://statistics.data.gov.uk/id/local-authority/32UF,Finance,Professional and Contractors Fees,31/10/2023,30035452,"12,095.00 ",East Lindsey District Council
South Holland District Council,http://statistics.data.gov.uk/id/local-authority/32UF,Finance,Professional and Contractors Fees,31/10/2023,30036930,"10,437.25 ",South Norfolk Council
South Holland District Council,http://statistics.data.gov.uk/id/local-authority/32UF,Head of ICT and Digital,Computer Software Licence Costs,31/10/2023,30036518,"7,500.00 ",Goss Interactive Ltd
South Holland District Council,http://statistics.data.gov.uk/id/local-authority/32UF,Head of ICT and Digital,Computer Software Licence Costs,31/10/2023,30036519,"3,540.00 ",Goss Interactive Ltd
South Holland District Council,http://statistics.data.gov.uk/id/local-authority/32UF,Head of Revenues and Benefits,External Audit Fees,31/10/2023,30037285,"18,180.00 ",KPMG LLP
South Holland District Council,http://statistics.data.gov.uk/id/local-authority/32UF,Head of Revenues and Benefits,PSPS Non-Base Contract Costs,31/10/2023,30037304,"15,686.24 ",Public Sector Partnership Services Ltd
South Holland District Council,http://statistics.data.gov.uk/id/local-authority/32UF,Planning,Agency - Vacant Post Cover,31/10/2023,30036747,"3,108.00 ",Yimby Ltd
South Holland District Council,http://statistics.data.gov.uk/id/local-authority/32UF,Planning,Staff Training Expenses (Non-Payroll),31/10/2023,30036343,"1,372.32 ",Boston Borough Council
South Holland District Council,http://statistics.data.gov.uk/id/local-authority/32UF,Public Protection,Computer Software Licence Costs,31/10/2023,30036957,"4,427.92 ",Skyguard Ltd
South Holland District Council,http://statistics.data.gov.uk/id/local-authority/32UF,Public Protection,Professional and Contractors Fees,31/10/2023,30036976,"1,330.00 ",G2 Recruitment Solutions
